bitfinex/quotes_ETHUSD_20250217
["timestamp","ask_amount","ask_price","bid_price","bid_amount"]
[1739817910561,4.30781205,2708.8,2708.0,3.69272]
[1739817910562,5.29133705,2708.8,2708.0,3.69272]
[1739817910849,5.29133705,2708.8,2708.2,3.64237]
[1739817911049,3.69203,2708.6,2707.9,3.69286]
[1739817911288,0.369203,2708.5,2707.8,0.8329]
[1739817911448,3.69072,2709.5,2707.8,0.8329]
[1739817911655,8.53584705,2709.5,2708.7,3.69167]
[1739817911857,3.69085,2709.4,2708.7,3.69167]
[1739817912257,3.69138,2709.1,2708.3,3.69229]
[1739817912576,8.53625705,2709.2,2708.5,3.69198]
[1739817912786,4.54488571,2709.1,2708.5,3.69198]
[1739817912991,4.54488571,2709.1,2708.3,3.69229]
[1739817913390,5.33708571,2709.1,2708.4,3.69209]
[1739817913556,1.64582571,2709.1,2707.9,7.38578]
[1739817913763,1.64582571,2709.1,2707.6,3.69317]
[1739817913764,0.7922,2708.4,2707.6,3.69317]
[1739817913960,0.56373271,2708.3,2707.7,3.69305]
[1739817914373,0.56373271,2708.3,2707.8,3.69301]
[1739817914696,0.56373271,2708.3,2707.7,3.69316]
[1739817914890,0.56373271,2708.3,2707.4,0.8134]
[1739817914891,0.56373271,2708.3,2707.8,3.69294]
[1739817915090,0.56373271,2708.3,2708.0,3.69266]
[1739817915297,0.56373271,2708.3,2707.8,3.69294]
[1739817915602,0.8104,2708.9,2708.3,3.69225]
[1739817915898,0.8104,2708.9,2708.4,3.69211]
[1739817916258,4.84512705,2708.5,2707.8,3.69295]
[1739817916660,4.84512705,2708.5,2708.0,3.69271]
[1739817917011,0.85371171,2708.4,2707.8,3.69295]
[1739817917221,0.85371171,2708.4,2704.9,1.82107426]
[1739817917222,3.69315,2707.8,2706.5,4.45905]
[1739817917498,4.84512705,2707.9,2707.5,3.69344]
[1739817917663,3.69285,2708.0,2707.5,3.69344]
[1739817917863,3.69294,2707.9,2707.3,3.6937]
[1739817918177,0.78936211,2707.8,2707.1,3.69392]
[1739817918385,4.43633565,2707.8,2707.2,3.69382]
[1739817918599,0.74319565,2707.8,2707.5,3.69335]
[1739817918765,3.69286,2708.0,2707.3,3.69359]
[1739817918966,9.34811705,2708.2,2707.6,3.6933]
[1739817919425,0.8104,2708.2,2707.9,3.69282]
[1739817919580,0.8104,2708.2,2708.0,3.69271]
[1739817919783,0.8104,2708.2,2708.1,3.69262]
[1739817920003,0.7724,2708.5,2708.0,3.69271]
[1739817920333,0.59255271,2708.4,2708.0,3.69265]
[1739817921465,0.04615584,2708.3,2707.2,4.44478]
[1739817921664,0.59255271,2708.4,2707.2,0.751]
[1739817921970,0.59255271,2708.4,2708.1,3.69253]
[1739817922169,0.7724,2708.5,2708.2,3.69238]
[1739817922373,0.7724,2708.5,2708.3,3.69233]
[1739817922617,0.7724,2708.9,2708.4,3.69221]
[1739817922950,0.446383,2708.8,2708.5,3.69201]
[1739817923498,0.446383,2708.8,2708.4,3.69219]
[1739817923689,0.7724,2708.9,2707.9,4.44386]
[1739817923690,0.7724,2708.9,2708.6,3.69183]
[1739817923888,4.4634,2709.3,2708.7,3.69172]
[1739817924279,0.7724,2709.3,2708.4,3.69215]
[1739817924474,0.04614657,2709.2,2708.4,3.69215]
[1739817924708,3.69138,2709.1,2708.5,3.69206]
[1739817924919,0.738257,2709.0,2708.4,3.69215]
[1739817925076,0.738257,2709.0,2708.2,3.69239]
[1739817925077,3.69176,2708.8,2708.2,3.69239]
[1739817925276,0.8033,2708.6,2707.9,0.751]
[1739817925518,4.44378,2709.0,2708.4,3.69213]
[1739817925721,0.7523,2709.0,2708.4,3.69213]
[1739817925920,0.7523,2709.0,2708.6,3.69193]
[1739817926224,0.7523,2709.0,2708.5,3.69195]
[1739817926741,3.69183,2708.7,2708.1,3.69253]
[1739817926922,3.69174,2708.8,2708.1,3.69255]
[1739817927219,4.44376,2709.0,2708.4,3.69213]
[1739817927423,0.444376,2708.9,2708.4,3.69213]
[1739817927601,0.7523,2709.0,2708.6,3.69184]
[1739817927972,0.7523,2709.0,2707.9,4.44387]
[1739817928286,0.7523,2709.0,2708.6,3.69186]
[1739817928488,0.7523,2709.0,2708.6,3.69185]
[1739817928876,0.7523,2709.0,2708.4,3.69213]
[1739817929078,0.7523,2709.0,2708.7,3.6918]
[1739817929079,0.444363,2708.9,2708.7,3.6918]
[1739817929474,0.7523,2709.0,2708.5,3.69205]
[1739817929706,0.7523,2709.0,2708.6,3.69192]
[1739817930012,0.7523,2709.0,2708.7,3.6918]
[1739817930926,0.04614667,2708.9,2708.0,3.69276]
[1739817931229,8.13525,2709.0,2708.4,3.6921]
[1739817931427,4.505135,2708.9,2708.4,3.6921]
[1739817931572,0.813525,2708.9,2708.4,3.6921]
[1739817931774,0.813525,2708.9,2708.3,3.69234]
[1739817932089,0.813525,2708.9,2708.5,3.75173076]
[1739817932311,0.813525,2708.9,2708.5,3.69205]
[1739817932613,0.5257305,2708.8,2708.6,0.06036613]
[1739817932905,0.5257305,2708.8,2708.6,3.75228613]
[1739817933119,4.44372,2709.0,2708.4,3.69214]
[1739817933326,4.44372,2709.0,2708.7,0.05808898]
[1739817933489,0.7523,2709.0,2708.5,3.692]
[1739817933676,0.7523,2709.0,2708.8,0.05796778]
[1739817933877,0.7523,2709.0,2708.5,3.692]
[1739817934180,3.69058,2709.6,2709.0,3.69128]
[1739817934384,4.49314,2709.7,2709.0,3.69131]
[1739817934612,4.49306,2709.7,2709.1,3.74884931]
[1739817934911,3.6908,2709.5,2709.1,0.05759931]
[1739817935111,4.47975132,2709.4,2709.1,0.05759931]
[1739817935306,0.74275143,2709.4,2709.0,3.69139]
[1739817935492,0.74275143,2709.4,2709.2,0.05746099]
[1739817935682,4.49304,2709.7,2709.2,3.69102]
[1739817935888,0.7754,2710.0,2709.4,3.69075]
[1739817936110,0.7754,2710.0,2709.3,0.05733983]
[1739817936297,0.04613028,2709.9,2709.5,3.74774753]
[1739817936498,0.04613028,2709.9,2709.5,3.69065]
[1739817936695,3.73639028,2709.9,2709.6,0.05691761]
[1739817937005,0.45117903,2709.8,2709.3,3.69087]
[1739817937191,0.45117903,2709.8,2709.7,0.05679649]
[1739817937400,0.45117903,2709.8,2709.4,3.69078]
[1739817937595,0.45117903,2709.8,2709.7,0.05679649]
[1739817937788,0.45117903,2709.8,2709.4,3.69077]
[1739817938022,0.45117903,2709.8,2709.2,3.69106]
[1739817938185,3.6906,2709.6,2709.5,0.05703875]
[1739817938404,3.6906,2709.6,2708.9,3.69144]
[1739817938405,3.69058,2709.6,2708.9,3.69152]
[1739817938600,3.69058,2709.6,2709.5,0.0569457]
[1739817938790,3.69058,2709.6,2708.9,3.69152]
[1739817938791,3.69058,2709.6,2709.0,3.6913]
[1739817939105,0.77951669,2709.5,2709.0,3.6913]
[1739817939409,0.77951669,2709.5,2708.8,0.8018]
[1739817939612,0.77951669,2709.5,2709.1,3.69117]
[1739817939814,0.77951669,2709.5,2708.8,0.8018]
[1739817939815,4.47024669,2709.5,2708.9,3.69143]
[1739817940015,0.77951669,2709.5,2709.0,3.69133]
[1739817940199,0.44700967,2709.4,2709.0,3.69133]
[1739817940405,0.44700967,2709.4,2708.9,3.69143]
[1739817940603,3.69133,2709.1,2708.5,3.69196]
[1739817940794,3.69113,2709.2,2708.4,0.8277]
[1739817940990,3.69113,2709.2,2708.7,3.69172]
[1739817941396,3.69113,2709.2,2708.7,7.38345]
[1739817941598,3.69113,2709.2,2708.4,0.8277]
[1739817941599,3.69102,2709.3,2708.8,3.69159]
[1739817941786,0.450072,2709.2,2708.6,3.69184]
[1739817941983,0.450072,2709.2,2708.9,3.69152]
[1739817942294,0.450072,2709.2,2708.7,3.69172]
[1739817942615,0.450072,2709.2,2708.8,3.69166]
[1739817942790,0.8097,2709.4,2709.0,3.6913]
[1739817943004,0.8097,2709.4,2708.4,4.51987]
[1739817943193,2.15386654,2710.1,2709.2,0.8055]
[1739817943194,1.1858369,2709.7,2709.2,0.8055]
[1739817943540,0.7717,2710.0,2709.5,3.69062]
[1739817943824,0.7717,2710.0,2709.4,3.69085]
[1739817943825,4.50787005,2710.0,2709.2,0.8055]
[1739817943978,4.50787005,2710.0,2709.4,3.69082]
[1739817944183,4.46174,2710.0,2709.5,3.6907]
[1739817944382,0.446174,2709.9,2709.4,3.69082]
[1739817944611,0.446174,2709.9,2709.5,3.69071]
[1739817944819,4.136424,2709.9,2709.4,3.69081]
[1739817945020,0.446174,2709.9,2709.5,3.6907]
[1739817945186,0.446174,2709.9,2709.6,3.69047]
[1739817945586,0.446174,2709.9,2709.3,3.69099]
[1739817945783,0.446174,2709.9,2709.5,3.69069]
[1739817945986,0.446174,2709.9,2709.7,3.69034]
[1739817946211,3.68985,2710.2,2709.2,0.8055]
[1739817946429,0.7596,2710.3,2709.3,3.69099]
[1739817946732,7.38055,2709.9,2709.3,3.69099]
[1739817947025,4.44921,2710.4,2709.6,3.69044]
[1739817947219,3.68985,2710.2,2709.6,3.69044]
[1739817947395,3.68985,2710.2,2709.7,0.05621051]
[1739817947796,3.68985,2710.2,2709.7,3.74663051]
[1739817948025,3.68985,2710.2,2709.7,0.05621051]
[1739817948223,0.744921,2710.3,2709.7,0.05621051]
[1739817948430,3.69024,2709.9,2709.7,0.05621051]
[1739817948625,3.69024,2709.9,2709.4,3.69078]
[1739817948789,3.68999,2710.1,2709.8,0.05608939]
[1739817948992,0.4504521,2710.2,2709.4,3.69078]
[1739817949351,4.1402821,2710.2,2709.6,3.69047]
[1739817949646,0.48852031,2710.1,2709.7,3.74654051]
[1739817949946,4.1402521,2710.2,2709.7,3.74654051]
[1739817950349,4.1402521,2710.2,2709.7,0.05621051]
[1739817950539,4.1402521,2710.2,2709.5,0.7517]
[1739817950540,0.04612708,2710.1,2709.5,0.7517]
[1739817950849,0.04612708,2710.1,2708.9,3.69146]
[1739817950850,3.69027,2709.9,2709.6,0.05633163]
[1739817951020,3.69027,2709.9,2709.4,3.69078]
[1739817951229,4.428289,2709.9,2709.7,0.05621051]
[1739817951413,4.428289,2709.9,2709.0,4.50626]
[1739817951734,3.78887,2710.9,2710.3,3.68955]
[1739817951940,3.68923,2710.6,2710.2,0.8149]
[1739817952113,3.68923,2710.6,2710.3,0.05546925]
[1739817952114,9.33287705,2710.5,2710.3,0.05546925]
[1739817952317,3.68995,2710.1,2709.3,3.69089]
[1739817952633,1.30221071,2710.4,2710.0,3.68999]
[1739817952825,4.48783,2710.5,2709.9,3.69016]
[1739817953148,0.7984,2710.8,2710.0,0.05583249]
[1739817953349,0.7984,2710.8,2710.3,3.68949]
[1739817953651,0.7984,2710.8,2710.4,3.74475819]
[1739817953949,0.7984,2710.8,2710.4,3.74476819]
[1739817954349,0.7984,2710.8,2710.7,3.68908]
[1739817954654,0.1,2710.9,2710.7,0.05498505]
[1739817955015,0.1,2710.9,2710.7,3.68908]
[1739817955351,0.1,2710.9,2710.8,3.74380402]
[1739817957119,0.1,2710.9,2710.8,5.27489142]
[1739817957322,0.1,2710.9,2710.8,8.27489142]
[1739817957538,4.51741,2712.3,2711.7,3.68759]
[1739817957720,0.8304,2712.3,2711.9,3.68731]
[1739817957920,2.111407,2712.3,2711.9,3.68731]
[1739817958141,0.8304,2712.3,2712.0,0.05301096]
[1739817958341,3.68639,2712.7,2711.5,3.7904]
[1739817958342,3.68668,2712.5,2711.5,3.7904]
[1739817958545,3.68668,2712.5,2711.9,3.68744]
[1739817958748,3.68668,2712.5,2712.0,0.05301096]
[1739817958943,4.51933,2712.7,2712.0,3.74031096]
[1739817959145,0.451933,2712.6,2712.0,0.05301096]
[1739817959420,0.451933,2712.6,2712.1,4.50055]
[1739817959620,0.8329,2712.7,2712.3,3.6869]
[1739817959846,0.8164,2713.0,2712.2,3.73973914]
[1739817960050,3.68617,2712.9,2712.4,0.05252736]
[1739817960359,3.78569,2713.2,2712.7,3.68625]
[1739817960580,3.68595,2713.0,2712.8,0.05204391]
[1739817960858,3.68609,2712.9,2712.8,0.05204391]
[1739817961022,3.68623,2712.8,2712.1,0.8134]
[1739817961222,3.68598,2713.0,2712.8,0.05204391]
[1739817961422,3.68598,2713.0,2712.4,3.68667]
[1739817961732,3.68632,2712.8,2712.2,3.68698]
[1739817961946,3.68644,2712.7,2712.1,0.8134]
[1739817962142,4.0595596,2712.8,2712.1,0.8134]
[1739817962143,0.3732396,2712.8,2712.1,0.8134]
[1739817962346,0.1,2713.2,2712.6,3.68641]
[1739817962660,0.1,2713.2,2713.0,3.68584]
[1739817962958,0.1,2713.2,2713.1,0.05168142]
[1739817963159,0.1,2713.2,2712.6,3.68642]
[1739817963464,0.1,2713.2,2712.8,3.68621]
[1739817963623,0.1,2713.2,2712.7,0.05216476]
[1739817963825,3.78569,2713.2,2712.9,0.05192307]
[1739817964025,3.78569,2713.2,2712.6,3.6864]
[1739817964026,0.1,2713.2,2712.8,0.05204391]
[1739817964356,0.1,2713.2,2712.9,0.05192307]
[1739817964732,0.7755,2713.1,2712.9,0.05192307]
[1739817965058,0.7755,2713.1,2712.2,0.7904]
[1739817965059,3.68657,2712.6,2712.2,0.7904]
[1739817965271,0.1,2713.2,2712.2,0.7904]
[1739817965580,3.68597,2713.0,2712.5,3.68659]
[1739817965860,0.1,2713.2,2712.7,3.68635]
[1739817966048,0.1,2713.2,2712.8,3.68614]
[1739817966246,0.1,2713.2,2713.0,3.68584]
[1739817966661,0.1,2713.2,2713.1,0.05168142]
[1739817966957,3.78568,2713.2,2713.1,0.05168142]
[1739817967158,0.1,2713.2,2713.1,4.46562]
[1739817967358,0.1,2713.2,2713.1,4.51669042]
[1739817967861,0.1,2713.2,2713.1,7.51669042]
[1739817968470,0.1,2713.2,2713.1,0.05107042]
[1739817968763,3.78568,2713.2,2712.7,3.68629]
[1739817968961,3.78568,2713.2,2712.8,0.05143291]
[1739817969131,4.46699,2712.9,2712.2,4.46676]
[1739817969457,4.46699,2712.9,2712.3,0.05203725]
[1739817969458,3.68685,2712.4,2712.3,0.05203725]
[1739817969660,4.46775,2712.4,2712.3,0.05203725]
[1739817969865,3.6873,2712.1,2711.5,0.8247]
[1739817970167,0.82698624,2712.4,2711.6,3.74068369]
[1739817970168,3.68712,2712.2,2711.6,3.74068369]
[1739817970373,0.7809,2712.4,2711.6,0.05288369]
[1739817970532,3.68725,2712.1,2711.6,0.05288369]
[1739817970726,0.04609101,2712.3,2711.6,0.05288369]
[1739817970727,3.68714,2712.2,2711.6,0.05288369]
[1739817970963,3.68714,2712.2,2711.6,3.68783]
[1739817971166,4.46767,2712.4,2711.8,3.68758]
[1739817971377,1.896327,2712.4,2711.9,0.05252088]
[1739817971659,4.46821,2712.0,2711.9,0.05252088]
[1739817971867,4.46821,2712.0,2710.7,3.68902]
[1739817971868,3.68835,2711.3,2710.7,3.68902]
[1739817972074,3.68856,2711.1,2710.6,0.8247]
[1739817972243,3.68856,2711.1,2710.5,3.68925]
[1739817972244,3.68856,2711.1,2710.8,0.05385159]
[1739817972444,0.7809,2711.5,2710.7,0.05397262]
[1739817972445,4.46892,2711.5,2710.7,0.05397262]
[1739817972650,3.68832,2711.3,2710.9,0.05373057]
[1739817972846,0.7809,2711.5,2710.8,0.05385159]
[1739817973050,3.68527,2713.6,2710.8,0.05385159]
[1739817973051,0.7809,2711.8,2711.4,3.68813]
[1739817973442,0.7809,2712.1,2711.6,3.68781]
[1739817973637,0.7809,2712.1,2711.8,3.68751]
[1739817973852,0.7809,2712.1,2711.7,0.05276274]
[1739817974146,0.7809,2712.1,2711.8,0.05264181]
[1739817974348,3.68756,2711.9,2711.3,3.68824]
[1739817974561,0.8041,2711.5,2711.4,0.05312561]
[1739817974748,0.8041,2711.5,2710.6,3.68913]
[1739817974749,3.6883,2711.3,2710.6,3.68913]
[1739817974953,0.04610874,2711.2,2710.7,0.05397262]
[1739817975177,3.6883,2711.3,2710.5,3.68929]
[1739817975381,0.04611101,2711.2,2710.6,0.05409366]
[1739817975679,0.8041,2711.1,2710.6,0.05409366]
[1739817975974,3.73484338,2711.0,2710.4,3.68949]
[1739817976280,0.8041,2711.1,2710.5,3.7434747]
[1739817976454,0.8041,2711.1,2710.5,0.0542147]
[1739817976655,3.68897,2710.8,2710.5,0.0542147]
[1739817976851,0.04611425,2710.7,2710.1,3.68978]
[1739817977064,3.68897,2710.8,2710.6,0.05409366]
[1739817977263,3.68895,2710.8,2710.2,3.68967]
[1739817977467,3.68895,2710.8,2710.7,0.05397262]
[1739817977777,3.6891,2710.7,2710.1,3.6899]
[1739817977983,4.986877,2711.1,2710.0,0.8094]
[1739817978143,4.986877,2711.1,2710.5,3.6893]
[1739817978348,3.68867,2711.0,2710.6,0.05409366]
[1739817978540,3.68908,2710.7,2710.2,3.68964]
[1739817978780,3.68881,2710.9,2710.3,0.05445682]
[1739817979075,4.986887,2711.1,2710.4,3.68949]
[1739817979404,0.8032,2711.4,2711.0,3.68862]
[1739817979603,0.8032,2711.4,2710.6,7.37826]
[1739817979604,4.49135,2711.4,2710.6,7.37826]
[1739817979911,3.68842,2711.2,2711.1,0.05380348]
[1739817980049,3.68842,2711.2,2710.6,7.37821]
[1739817980250,0.8032,2711.4,2711.1,0.05373499]
[1739817980462,0.8032,2711.4,2711.0,7.37713]
[1739817980663,3.68727,2712.1,2711.5,3.68796]
[1739817980951,3.68774,2711.7,2711.2,3.68832]
[1739817981144,3.68766,2711.8,2711.2,3.68832]
[1739817981382,3.68766,2711.8,2711.3,0.05340499]
[1739817981702,0.74211473,2711.8,2711.3,0.05340499]
[1739817981900,0.74211473,2711.8,2711.0,0.8197]
[1739817981901,3.0,2711.9,2711.4,3.68805]
[1739817982185,0.7527,2712.1,2711.6,3.68774]
[1739817982355,4.43988,2712.1,2711.6,3.68774]
[1739817982680,4.43988,2712.1,2711.7,0.05292115]
[1739817982981,3.68748,2711.9,2711.7,0.05292115]
[1739817983186,3.68748,2711.9,2711.4,3.68805]
[1739817983392,0.04609375,2711.8,2711.2,3.6883]
[1739817983555,4.500216,2711.9,2711.2,3.6883]
[1739817983886,0.812736,2711.9,2711.0,4.5083]
[1739817984187,3.68781,2711.7,2711.2,3.68836]
[1739817984360,3.68761,2711.8,2711.3,3.68825]
[1739817984558,0.7527,2712.1,2711.5,3.68798]
[1739817984752,4.43996,2712.1,2711.5,3.68798]
[1739817984952,0.970996,2712.0,2711.5,3.68798]
[1739817985154,7.43996,2712.1,2711.5,3.68798]
[1739817985352,7.43996,2712.1,2711.5,7.37589]
[1739817985854,3.7527,2712.1,2711.5,3.68791]
[1739817986069,3.7527,2712.1,2711.0,0.8197]
[1739817986070,0.7527,2712.1,2711.8,3.68749]
[1739817986256,3.68732,2712.0,2711.6,0.7803]
[1739817986660,0.7527,2712.1,2711.6,0.7803]
[1739817986661,4.43992,2712.1,2711.6,0.7803]
[1739817987083,3.68733,2712.0,2711.4,3.688]
[1739817987312,3.68733,2712.0,2710.9,3.68871]
[1739817987313,0.7732,2711.5,2710.9,3.68871]
[1739817987499,0.7732,2711.5,2711.1,3.68845]
[1739817987805,0.7732,2711.5,2710.6,0.818951]
[1739817988005,3.68813,2711.4,2710.5,0.7803]
[1739817988218,3.7732,2711.5,2710.9,3.68875]
[1739817988400,0.7732,2711.5,2710.5,0.7803]
[1739817988574,0.7732,2711.8,2711.5,3.68797]
[1739817988775,0.7732,2712.1,2711.2,0.7803]
[1739817989085,5.27,2712.2,2711.7,3.68761]
[1739817989407,8.95713,2712.2,2711.7,3.68765]
[1739817989582,5.27,2712.2,2711.7,3.68764]
[1739817989783,5.27,2712.2,2711.4,0.7863]
[1739817990106,3.7732,2712.4,2711.9,3.68743]
[1739817990308,0.7732,2712.4,2712.1,3.68716]
[1739817990488,3.68657,2712.6,2712.1,3.68716]
[1739817990813,3.68663,2712.5,2711.7,3.68765]
[1739817990975,3.68691,2712.3,2711.7,7.744035]
[1739817991307,0.82468619,2712.2,2711.4,4.47433]
[1739817991515,3.6878,2711.7,2711.1,0.7838]
[1739817992014,0.8031,2711.6,2711.1,4.47226]
[1739817992378,0.8031,2711.6,2711.2,3.68839]
[1739817992916,0.8031,2711.6,2711.2,7.37669]
[1739817993209,0.8031,2711.6,2711.2,3.6883]
[1739817993412,0.8031,2711.6,2711.3,3.73938697]
[1739817993711,0.8031,2711.6,2711.3,0.05119697]
[1739817994209,3.68752,2711.9,2711.4,0.05112718]
[1739817994381,3.68752,2711.9,2711.5,3.68799]
[1739817994382,0.8017,2711.9,2711.5,3.68799]
[1739817994583,0.8017,2711.9,2711.6,0.05088526]
[1739817994800,4.48916,2711.9,2711.4,3.68802]
[1739817995015,4.48916,2711.9,2711.7,0.05078381]
[1739817995310,3.68774,2711.7,2711.2,3.68831]
[1739817996001,3.68774,2711.7,2711.1,0.7838]
[1739817996199,0.04610089,2711.6,2711.0,3.68861]
[1739817996398,1.250616,2711.9,2710.8,4.52208]
[1739817996399,3.68767,2711.8,2711.2,3.68827]
[1739817996577,3.68773,2711.7,2711.2,3.68827]
[1739817996979,0.8017,2711.9,2711.2,0.737688]
[1739817997179,4.48918,2711.9,2711.4,3.68811]
[1739817997489,4.48918,2711.9,2710.8,0.8332]
[1739817997490,4.48918,2711.9,2711.2,3.68836]
[1739817997690,3.68768,2711.8,2711.2,3.68833]
[1739817997879,3.68768,2711.8,2711.3,3.68826]
[1739817998276,4.48918,2711.9,2711.2,3.68833]
[1739817998474,0.8017,2711.9,2711.3,0.368833]
[1739817998679,3.68773,2711.7,2711.2,3.68832]
[1739817999114,3.68823,2711.4,2710.8,0.8332]
[1739817999412,3.68849,2711.2,2710.7,3.68901]
[1739818000223,3.68854,2711.1,2710.7,3.68901]
[1739818000516,0.8017,2711.3,2710.2,0.8332]
[1739818000701,3.68861,2711.1,2710.6,3.68915]
[1739818000902,0.8017,2711.3,2711.0,3.68859]
[1739818001107,0.8017,2711.6,2711.2,3.6884]
[1739818001282,4.48958,2711.6,2711.2,3.6884]
[1739818001484,0.8017,2711.6,2710.7,0.8332]
[1739818001780,0.8017,2711.6,2711.2,3.6883]
[1739818002087,0.8017,2711.6,2711.3,3.68819]
[1739818002818,0.8017,2711.6,2711.2,3.6883]
[1739818003023,3.688,2711.5,2711.0,3.68859]
[1739818003315,3.688,2711.5,2710.7,0.8332]
[1739818003316,3.68823,2711.4,2710.8,3.68883]
[1739818003518,3.688,2711.5,2711.0,3.6886]
[1739818004281,3.688,2711.5,2710.9,3.68876]
[1739818004282,0.8017,2711.6,2710.7,0.8332]
[1739818004486,0.8017,2711.6,2711.1,3.68844]
[1739818004912,3.68814,2711.4,2710.9,3.68872]
[1739818005924,0.8017,2711.6,2710.7,4.52224]
[1739818006111,0.8017,2711.6,2711.1,3.68846]
[1739818006282,0.8017,2711.6,2711.2,3.68839]
[1739818006489,0.8017,2711.6,2710.7,0.8332]
[1739818006490,0.8017,2711.6,2711.3,3.68825]
[1739818008320,0.8308,2712.1,2711.0,0.7915]
[1739818008501,4.51799,2712.1,2711.4,0.05124174]
[1739818008699,3.68743,2712.0,2711.1,3.68853]
[1739818009002,3.68748,2711.9,2711.4,3.688]
[1739818009320,0.8308,2712.1,2711.5,3.68798]
[1739818009523,3.68733,2712.0,2711.5,3.73906421]
[1739818009822,7.37476,2712.0,2711.5,3.73906421]
[1739818010026,3.68733,2712.0,2711.5,3.73906421]
[1739818010227,3.68747,2711.9,2711.5,0.05108421]
[1739818010601,0.8308,2712.1,2711.5,0.05108421]
[1739818010798,3.68785,2711.6,2711.5,0.05108421]
[1739818011006,0.801,2711.6,2710.7,0.8167]
[1739818011303,4.48889,2711.6,2711.5,0.05107446]
[1739818011499,3.6881,2711.5,2711.0,3.68865]
[1739818011821,0.801,2711.6,2710.7,0.8167]
[1739818012040,0.801,2711.6,2711.3,3.6882]
[1739818012244,4.48887,2711.6,2711.1,3.68848]
[1739818012440,4.48887,2711.6,2711.1,3.68845]
[1739818012808,8.17682,2711.6,2711.1,3.68845]
[1739818013004,8.17683,2711.6,2711.1,3.68845]
[1739818013248,0.801,2711.6,2711.1,0.737722]
[1739818013547,0.801,2711.6,2711.3,3.68813]
[1739818013687,3.68767,2711.8,2711.3,3.68813]
[1739818014049,3.68767,2711.8,2711.1,3.68842]
[1739818014347,4.46951,2711.9,2710.7,4.50574]
[1739818014486,0.782,2711.9,2711.5,3.68793]
[1739818014692,3.6872,2712.1,2711.6,3.68779]
[1739818015268,3.68738,2712.0,2711.6,3.68779]
[1739818015413,7.37447,2712.1,2711.5,4.056653]
[1739818015742,3.782,2712.2,2711.5,0.368793]
[1739818015885,3.68738,2712.0,2711.5,3.68799]
[1739818016605,3.68738,2712.0,2711.4,4.47164]
[1739818016791,3.68738,2712.0,2711.5,3.68799]
[1739818017821,3.68738,2712.0,2711.4,4.47164]
[1739818018025,1.9872,2712.2,2711.3,3.68818]
[1739818018327,0.782,2712.2,2711.3,3.68817]
[1739818018522,3.68744,2712.0,2711.4,3.6881]
[1739818018913,0.782,2712.2,2711.3,3.68817]
[1739818019233,3.68764,2711.8,2711.3,3.68817]
[1739818019396,3.68775,2711.7,2711.3,3.68817]
[1739818019791,0.782,2712.2,2711.4,3.68813]
[1739818020125,3.68721,2712.1,2711.6,3.68776]
[1739818020325,4.46912,2712.2,2711.7,3.68767]
[1739818020533,3.68728,2712.1,2711.6,3.68776]
[1739818021031,3.68724,2712.1,2711.7,3.68761]
[1739818021227,3.68717,2712.1,2711.5,3.68792]
[1739818021428,3.68731,2712.0,2711.5,3.68792]
[1739818021630,3.68731,2712.0,2711.6,3.68784]
[1739818021797,4.46915,2712.2,2711.7,3.68764]
[1739818022125,5.27,2712.3,2711.9,3.68733]
[1739818022501,3.68678,2712.4,2711.9,3.68733]
[1739818022706,3.68678,2712.4,2712.0,3.68725]
[1739818022902,3.68678,2712.4,2712.0,3.68731]
[1739818023103,4.50724,2712.5,2712.0,3.68731]
[1739818023298,3.68677,2712.4,2712.0,3.68731]
[1739818023499,3.68677,2712.4,2712.1,0.05016985]
[1739818023899,0.8206,2712.5,2712.1,3.73721985]
[1739818024128,0.8206,2712.5,2712.1,0.05016985]
[1739818024334,4.50732,2712.5,2712.1,0.05016985]
[1739818024540,4.50732,2712.5,2712.0,3.68731]
[1739818024697,4.50732,2712.5,2712.2,0.05004895]
[1739818024896,3.6869,2712.3,2712.1,0.05016985]
[1739818025231,3.6871,2712.2,2711.5,4.4545]
[1739818025419,3.6871,2712.2,2711.7,3.68764]
[1739818025629,4.50732,2712.5,2712.0,3.68725]
[1739818025932,4.50732,2712.5,2712.1,3.68713]
[1739818026112,5.4204,2712.6,2712.2,3.68699]
[1739818026314,9.10691,2712.6,2712.2,3.68699]
[1739818026511,9.20691,2712.6,2712.0,3.68726]
[1739818026825,3.68665,2712.5,2712.1,3.68717]
[1739818027339,3.68708,2712.2,2711.7,3.68766]
[1739818027638,3.68734,2712.0,2711.6,3.68785]
[1739818028001,3.68767,2711.8,2711.2,4.4484]
[1739818028201,4.47654,2711.7,2711.2,3.6883]
[1739818028521,4.47642,2711.7,2711.2,3.6883]
[1739818028725,0.7887,2712.0,2711.6,3.68775]
[1739818028923,0.7887,2712.0,2711.5,3.68795]
[1739818029231,0.7887,2712.0,2711.1,4.49013]
[1739818029232,3.6877,2711.8,2711.1,4.49013]
[1739818029396,3.6877,2711.8,2711.2,3.6884]
[1739818029601,0.7887,2712.0,2711.1,0.8017]
[1739818029803,3.68746,2711.9,2711.5,3.68798]
[1739818030024,0.7887,2712.0,2711.5,3.68798]
[1739818030224,0.7887,2712.0,2711.2,3.68839]
[1739818030434,0.7884,2712.3,2711.9,3.68734]
[1739818030654,0.7884,2712.3,2711.9,7.37468]
[1739818030836,4.47536,2712.3,2711.8,3.68758]
[1739818031133,5.27,2712.5,2712.0,3.6872]
[1739818031304,5.27,2712.5,2712.1,3.68711]
[1739818031501,5.27,2712.5,2711.9,0.7801]
[1739818031716,5.27,2712.5,2712.2,3.68697]
[1739818031922,5.27,2712.5,2712.0,0.446761]
[1739818031923,0.8901,2713.2,2712.5,0.7801]
[1739818032125,0.1,2713.2,2713.1,3.68582]
[1739818032333,0.1,2713.2,2713.1,4.46592]